fUSD/lending_fUSD_20240913
["ID","MTS","AMOUNT","RATE_DAILY","PERIOD"]
[337950988,1726213845508,-500.0,0.00013546,2]
[337950990,1726213845520,-2577.22,0.00013546,2]
[337950991,1726213845530,-472.60084655,0.00013546,2]
[337950992,1726213845539,-500.0,0.00013546,2]
[337950993,1726213845548,-500.0,0.00013546,2]
[337950994,1726213845557,-14904.48,0.00013546,2]
[337950995,1726213845566,-500.0,0.00013546,2]
[337950996,1726213845575,-500.0,0.00013546,2]
[337950997,1726213845584,-500.0,0.00013546,2]
[337950998,1726213845593,-500.0,0.00013546,2]
[337951000,1726213845603,-500.0,0.00013546,2]
[337951001,1726213845612,-884.71,0.00013546,2]
[337951002,1726213845622,-795.31,0.00013546,2]
[337951004,1726213845632,-468.97186804,0.00013546,2]
[337951005,1726213845641,-648.12,0.00013546,2]
[337951006,1726213845650,-500.0,0.00013546,2]
[337951007,1726213845659,-765.18,0.00013546,2]
[337951008,1726213845668,-500.0,0.00013546,2]
[337951009,1726213845678,-500.0,0.00013546,2]
[337951010,1726213845687,-198.18868936,0.00013546,2]
[337951011,1726213845696,-500.0,0.00013546,2]
[337951012,1726213845706,-733.15,0.00013546,2]
[337951013,1726213845715,-719.1,0.00013547,2]
[337951014,1726213845727,-518.96,0.00013547,2]
[337951015,1726213845736,-500.0,0.00013547,2]
[337951016,1726213845745,-500.0,0.00013547,2]
[337951017,1726213845754,-500.0,0.00013547,2]
[337951018,1726213845764,-687.62,0.00013547,2]
[337951019,1726213845775,-500.0,0.00013547,2]
[337951020,1726213845784,-500.0,0.00013547,2]
[337951021,1726213845793,-500.0,0.00013547,2]
[337951022,1726213845802,-500.0,0.00013547,2]
[337951023,1726213845811,-500.0,0.00013547,2]
[337951024,1726213845823,-500.0,0.00013547,2]
[337951025,1726213845832,-1097.55,0.00013547,2]
[337951026,1726213845842,-688.42,0.00013547,2]
[337951027,1726213845851,-2251.54,0.00013547,2]
[337951028,1726213845860,-500.0,0.00013547,2]
[337951029,1726213845869,-500.0,0.00013547,2]
[337951030,1726213845878,-680.82,0.00013547,2]
[337951031,1726213845887,-500.0,0.00013547,2]
[337951032,1726213845896,-788.87,0.00013547,2]
[337951033,1726213845905,-500.0,0.00013547,2]
[337951034,1726213845915,-500.0,0.00013547,2]
[337951035,1726213845924,-500.0,0.00013547,2]
[337951036,1726213845933,-754.37,0.00013547,2]
[337951037,1726213845942,-542.73,0.00013547,2]
[337951038,1726213845952,-853.47,0.00013547,2]
[337951039,1726213845961,-1395.22,0.00013547,2]
[337951040,1726213845971,-500.0,0.00013547,2]
[337951041,1726213845980,-613.01,0.00013547,2]
[337951042,1726213845989,-569.39,0.00013547,2]
[337951043,1726213846000,-844.23,0.00013547,2]
[337951044,1726213846010,-500.0,0.00013547,2]
[337951045,1726213846019,-531.75002028,0.00013547,2]
[337951046,1726213846029,-726.04,0.00013547,2]
[337951047,1726213846039,-868.76,0.00013547,2]
[337951048,1726213846049,-500.0,0.00013547,2]
[337951049,1726213846059,-500.0,0.00013547,2]
[337951050,1726213846070,-511.52,0.00013547,2]
[337951051,1726213846079,-500.0,0.00013547,2]
[337951052,1726213846090,-971.45,0.00013547,2]
[337951053,1726213846099,-640.95,0.00013547,2]
[337951054,1726213846108,-500.0,0.00013547,2]
[337951055,1726213846119,-500.0,0.00013547,2]
[337951056,1726213846129,-500.0,0.00013547,2]
[337951057,1726213846139,-500.0,0.00013547,2]
[337951058,1726213846148,-500.0,0.00013547,2]
[337951059,1726213846158,-991.1,0.00013547,2]
[337951060,1726213846168,-792.55,0.00013547,2]
[337951061,1726213846179,-500.0,0.00013547,2]
[337951062,1726213846189,-464.09,0.00013547,2]
[337951063,1726213846199,-728.38,0.00013547,2]
[337951064,1726213846210,-1547.46,0.00013547,2]
[337951065,1726213846219,-567.19,0.00013547,2]
[337951066,1726213846229,-665.96,0.00013547,2]
[337951067,1726213846240,-500.0,0.00013547,2]
[337951068,1726213846252,-500.0,0.00013547,2]
[337951069,1726213846262,-692.91,0.00013547,2]
[337951070,1726213846271,-1032.82,0.00013547,2]
[337951071,1726213846280,-500.0,0.00013547,2]
[337951072,1726213846290,-629.1,0.00013547,2]
[337951073,1726213846299,-649.02,0.00013547,2]
[337951074,1726213846309,-500.0,0.00013547,2]
[337951075,1726213846318,-743.99,0.00013547,2]
[337951076,1726213846327,-756.68,0.00013547,2]
[337951077,1726213846336,-500.0,0.00013547,2]
[337951078,1726213846345,-822.23,0.00013547,2]
[337951079,1726213846355,-539.74,0.00013547,2]
[337951080,1726213846364,-1034.9,0.00013547,2]
[337951081,1726213846374,-500.0,0.00013547,2]
[337951082,1726213846383,-911.76,0.00013547,2]
[337951083,1726213846392,-500.0,0.00013547,2]
[337951084,1726213846402,-619.66,0.00013547,2]
[337951085,1726213846411,-500.0,0.00013547,2]
[337951086,1726213846421,-1001.47,0.00013547,2]
[337951087,1726213846430,-797.54,0.00013547,2]
[337951088,1726213846440,-500.0,0.00013547,2]
[337951089,1726213846449,-931.62,0.00013547,2]
[337951090,1726213846459,-500.0,0.00013547,2]
[337951091,1726213846468,-561.96,0.00013547,2]
[337951092,1726213846531,-501.86,0.00013547,2]
[337951093,1726213846540,-500.0,0.00013547,2]
[337951094,1726213846549,-1558.83,0.00013547,2]
[337951095,1726213846558,-500.0,0.00013547,2]
[337951096,1726213846568,-1350.65,0.00013547,2]
[337951097,1726213846577,-785.01,0.00013547,2]
[337951098,1726213846586,-500.0,0.00013547,2]
[337951099,1726213846595,-500.0,0.00013547,2]
[337951100,1726213846604,-500.0,0.00013547,2]
[337951101,1726213846613,-500.0,0.00013547,2]
[337951102,1726213846622,-500.0,0.00013547,2]
[337951103,1726213846631,-500.0,0.00013547,2]
[337951104,1726213846640,-524.29,0.00013547,2]
[337951105,1726213846650,-646.17,0.00013547,2]
[337951106,1726213846659,-1142.81,0.00013547,2]
[337951107,1726213846668,-936.94,0.00013547,2]
[337951108,1726213846677,-500.0,0.00013547,2]
[337951109,1726213846686,-711.24,0.00013547,2]
[337951110,1726213846696,-500.0,0.00013547,2]
[337951111,1726213846706,-500.0,0.00013547,2]
[337951112,1726213846716,-500.0,0.00013547,2]
[337951113,1726213846728,-562.66,0.00013547,2]
[337951114,1726213846737,-500.0,0.00013547,2]
[337951115,1726213846746,-500.0,0.00013547,2]
[337951116,1726213846756,-653.0,0.00013547,2]
[337951117,1726213846767,-853.97,0.00013547,2]
[337951118,1726213846779,-500.0,0.00013547,2]
[337951119,1726213846789,-500.0,0.00013547,2]
[337951120,1726213846801,-500.0,0.00013547,2]
[337951121,1726213846811,-1093.66,0.00013547,2]
[337951122,1726213846821,-1322.47,0.00013547,2]
[337951123,1726213846830,-787.84,0.00013547,2]
[337951124,1726213846840,-500.0,0.00013547,2]
[337951125,1726213846852,-657.72,0.00013547,2]
[337951126,1726213846863,-621.74766851,0.00013547,2]
[337951127,1726213846872,-741.0,0.00013547,2]
[337951128,1726213846881,-500.0,0.00013547,2]
[337951129,1726213846892,-1499.96,0.00013547,2]
[337951130,1726213846903,-839.44,0.00013547,2]
[337951131,1726213846913,-716.46,0.00013547,2]
[337951132,1726213846922,-748.32,0.00013547,2]
[337951133,1726213846932,-2249.45,0.00013547,2]
[337951134,1726213846941,-500.0,0.00013547,2]
[337951135,1726213846950,-500.0,0.00013547,2]
[337951136,1726213846959,-620.77,0.00013547,2]
[337951137,1726213846968,-500.0,0.00013547,2]
[337951138,1726213846977,-735.53,0.00013547,2]
[337951139,1726213846986,-500.0,0.00013547,2]
[337951140,1726213846995,-500.0,0.00013547,2]
[337951141,1726213847004,-500.0,0.00013547,2]
[337951142,1726213847013,-500.0,0.00013547,2]
[337951143,1726213847022,-500.0,0.00013547,2]
[337951144,1726213847031,-500.0,0.00013547,2]
[337951145,1726213847040,-960.0,0.00013547,2]
[337951146,1726213847049,-1368.79,0.00013547,2]
[337951147,1726213847058,-761.5,0.00013547,2]
[337951148,1726213847068,-500.0,0.00013547,2]
[337951149,1726213847077,-500.0,0.00013547,2]
[337951150,1726213847087,-500.0,0.00013547,2]
[337951151,1726213847096,-500.0,0.00013547,2]
[337951152,1726213847105,-740.63,0.00013547,2]
[337951153,1726213847114,-500.0,0.00013547,2]
[337951154,1726213847123,-1225.34,0.00013547,2]
[337951155,1726213847133,-17658.12,0.00013547,2]
[337951156,1726213847141,-500.0,0.00013547,2]
[337951157,1726213847151,-904.75,0.00013547,2]
[337951158,1726213847160,-958.77,0.00013547,2]
[337951159,1726213847169,-1641.0,0.00013547,2]
[337951160,1726213847178,-773.78,0.00013547,2]
[337951161,1726213847188,-605.11,0.00013547,2]
[337951162,1726213847197,-500.0,0.00013547,2]
[337951163,1726213847208,-500.0,0.00013547,2]
[337951164,1726213847217,-655.76,0.00013547,2]
[337951165,1726213847226,-500.0,0.00013547,2]
[337951166,1726213847235,-661.13,0.00013547,2]
[337951167,1726213847244,-500.0,0.00013547,2]
[337951168,1726213847253,-1608.56,0.00013547,2]
[337951169,1726213847263,-500.0,0.00013547,2]
[337951170,1726213847272,-740.0,0.00013547,2]
[337951171,1726213847281,-626.56,0.00013547,2]
[337951172,1726213847290,-3047.98,0.00013547,2]
[337951173,1726213847299,-848.45,0.00013547,2]
[337951174,1726213847308,-1093.2,0.00013547,2]
[337951175,1726213847318,-11624.11,0.00013547,2]
[337951176,1726213847326,-917.78,0.00013547,2]
[337951177,1726213847335,-1159.05,0.00013547,2]
[337951178,1726213847344,-500.0,0.00013547,2]
[337951179,1726213847354,-574.95,0.00013547,2]
[337951180,1726213847363,-842.87,0.00013547,2]
[337951181,1726213847372,-1758.66,0.00013547,2]
[337951182,1726213847381,-1231.94,0.00013547,2]
[337951183,1726213847390,-1093.44,0.00013547,2]
[337951184,1726213847399,-500.0,0.00013547,2]
[337951185,1726213847412,-563.15,0.00013547,2]
[337951186,1726213847421,-1503.55,0.00013547,2]
[337951187,1726213847430,-850.51,0.00013547,2]
[337951188,1726213847439,-500.0,0.00013547,2]
[337951189,1726213847449,-500.0,0.00013547,2]
[337951190,1726213847458,-558.16,0.00013547,2]
[337951191,1726213847467,-5360.5,0.00013547,2]
[337951192,1726213847477,-516.14,0.00013547,2]
[337951193,1726213847487,-716.58,0.00013547,2]
[337951194,1726213847496,-986.74,0.00013547,2]
[337951195,1726213847506,-877.5,0.00013547,2]
[337951196,1726213847516,-754.27,0.00013547,2]
[337951197,1726213847534,-1129.63,0.00013547,2]
[337951198,1726213847543,-1047.68,0.00013547,2]
[337951199,1726213847552,-734.41,0.00013547,2]
[337951200,1726213847562,-1431.62,0.00013547,2]
[337951201,1726213847571,-500.0,0.00013547,2]
[337951202,1726213847581,-772.99,0.00013547,2]
[337951203,1726213847591,-896.15,0.00013547,2]
[337951204,1726213847599,-945.02,0.00013547,2]
[337951205,1726213847609,-735.69,0.00013547,2]
[337951206,1726213847618,-674.12,0.00013547,2]
[337951207,1726213847627,-1077.83,0.00013547,2]
[337951208,1726213847637,-540.56,0.00013547,2]
[337951209,1726213847646,-670.29,0.00013547,2]
[337951210,1726213847655,-1305.1,0.00013547,2]
[337951211,1726213847664,-500.0,0.00013547,2]
[337951212,1726213847673,-849.56,0.00013547,2]
[337951213,1726213847683,-500.0,0.00013547,2]
[337951214,1726213847692,-1445.59,0.00013547,2]
[337951215,1726213847701,-2041.294271,0.00013566,2]
[337951216,1726213847711,-500.0,0.00013573,2]
[337951217,1726213847722,-231.635,0.00013646,2]
[337951218,1726213847735,-810.0,0.00013646,2]
[337951219,1726213847744,-932.0,0.00013646,2]
[337951220,1726213847754,-438.223,0.00013646,2]
[337951221,1726213847765,-150.0,0.00013646,2]
[337951222,1726213847774,-434.997,0.00013646,2]
[337951223,1726213847783,-500.0,0.0001367,2]
[337951224,1726213847792,-1679.26,0.0001367,2]
[337951225,1726213847802,-500.0,0.0001367,2]
[337951226,1726213847812,-560.88,0.0001367,2]
[337951227,1726213847824,-682.95,0.0001367,2]
[337951228,1726213847834,-1326.86,0.0001367,2]
[337951229,1726213847846,-247.41,0.00013699,2]
[337951230,1726213847856,-445.49,0.00013699,2]
[337951231,1726213847866,-490.71,0.00013699,2]
[337951232,1726213847876,-2751.0,0.00013699,2]
[337951233,1726213847887,-200.0,0.00013699,2]
[337951234,1726213847897,-4806.27549167,0.000137,2]
[337951235,1726213847908,-2041.294271,0.00013788,2]
[337951236,1726213847918,-500.0,0.0001382,2]
[337951237,1726213847928,-500.0,0.0001382,2]
[337951238,1726213847939,-822.32,0.0001382,2]
[337951239,1726213847949,-700.05,0.0001382,2]
[337951240,1726213847958,-1316.89,0.0001382,2]
[337951241,1726213847968,-524.17,0.0001382,2]
[337951242,1726213847978,-2237.11,0.0001382,2]
[337951243,1726213847987,-500.0,0.0001382,2]
[337951244,1726213847996,-500.0,0.0001382,2]
[337951245,1726213848006,-500.0,0.0001382,2]
[337951246,1726213848018,-500.0,0.0001382,2]
[337951247,1726213848028,-603.62,0.0001382,2]
[337951248,1726213848038,-500.0,0.0001382,2]
[337951249,1726213848047,-2529.88,0.0001382,2]
[337951250,1726213848058,-500.0,0.0001382,2]
[337951251,1726213848068,-705.46,0.0001382,2]
[337951252,1726213848078,-1413.4,0.0001382,2]
[337951253,1726213848087,-500.0,0.0001382,2]
[337951254,1726213848098,-500.0,0.0001382,2]
[337951255,1726213848108,-520.25,0.0001382,2]
[337951256,1726213848118,-613.32,0.0001382,2]
[337951257,1726213848128,-447.35412499,0.0001382,2]
[337951258,1726213848138,-1254.56,0.0001382,2]
[337951259,1726213848148,-500.0,0.0001382,2]
[337951260,1726213848158,-1513.19,0.0001382,2]
[337951261,1726213848168,-1516.88,0.0001382,2]
[337951262,1726213848178,-597.25,0.0001382,2]
[337951263,1726213848188,-1266.62,0.0001382,2]
[337951264,1726213848198,-500.0,0.0001382,2]
[337951265,1726213848208,-500.0,0.0001382,2]
[337951266,1726213848217,-2037.24,0.0001382,2]
[337951267,1726213848227,-701.5,0.0001382,2]
[337951268,1726213848236,-819.14,0.0001382,2]
[337951269,1726213848246,-884.47,0.0001382,2]
[337951270,1726213848255,-3677.56,0.0001382,2]
[337951271,1726213848266,-500.0,0.0001382,2]
[337951272,1726213848275,-500.0,0.0001382,2]
[337951273,1726213848285,-2092.5,0.0001382,2]
[337951274,1726213848295,-500.0,0.0001382,2]
[337951275,1726213848305,-949.04,0.0001382,2]
[337951276,1726213848315,-962.25,0.0001382,2]
[337951277,1726213848324,-500.0,0.0001382,2]
[337951278,1726213848334,-1390.78,0.0001382,2]
[337951279,1726213848343,-1084.58,0.0001382,2]
[337951280,1726213848353,-3456.68,0.0001382,2]
[337951281,1726213848363,-843.28,0.0001382,2]
[337951282,1726213848372,-1058.58,0.0001382,2]
[337951283,1726213848382,-808.81,0.0001382,2]
[337951284,1726213848392,-1061.15,0.0001382,2]
[337951285,1726213848401,-3122.66,0.0001382,2]
[337951286,1726213848411,-726.88,0.0001382,2]
[337951287,1726213848420,-500.0,0.0001382,2]
[337951288,1726213848430,-6520.28,0.0001382,2]
[337951289,1726213848440,-500.0,0.0001382,2]
[337951290,1726213848449,-793.53,0.0001382,2]
[337951291,1726213848459,-2598.54,0.0001382,2]
[337951292,1726213848468,-749.12,0.0001382,2]
[337951293,1726213848477,-700.35,0.0001382,2]
[337951294,1726213848487,-1615.7,0.0001382,2]
[337951295,1726213848496,-13738.83,0.0001382,2]
[337951296,1726213848505,-2068.03,0.0001382,2]
[337951297,1726213848514,-1101.41,0.0001382,2]
[337951298,1726213848523,-683.53,0.0001382,2]
[337951299,1726213848532,-984.16,0.0001382,2]
[337951300,1726213848541,-2954.01,0.0001382,2]
[337951301,1726213848551,-832.6,0.0001382,2]
[337951302,1726213848560,-500.0,0.0001382,2]
[337951303,1726213848569,-819.64,0.0001382,2]
[337951304,1726213848579,-2083.19,0.0001382,2]
[337951305,1726213848588,-500.0,0.0001382,2]
[337951306,1726213848597,-511.72342857,0.0001382,2]
[337951307,1726213848607,-1741.32,0.0001382,2]
[337951308,1726213848616,-1190.84,0.0001382,2]
[337951309,1726213848625,-500.0,0.0001382,2]
[337951310,1726213848634,-500.0,0.0001382,2]
[337951311,1726213848643,-500.0,0.0001382,2]
[337951312,1726213848652,-698.13,0.0001382,2]
[337951313,1726213848662,-500.0,0.0001382,2]
[337951314,1726213848671,-500.0,0.0001382,2]
[337951315,1726213848680,-2577.22,0.0001382,2]
[337951316,1726213848689,-500.0,0.0001382,2]
[337951317,1726213848698,-500.0,0.0001382,2]
[337951318,1726213848708,-14904.48,0.0001382,2]
[337951319,1726213848717,-500.0,0.0001382,2]
[337951320,1726213848729,-500.0,0.0001382,2]
[337951321,1726213848738,-500.0,0.0001382,2]
[337951322,1726213848748,-500.0,0.0001382,2]
[337951323,1726213848757,-884.71,0.0001382,2]
[337951324,1726213848767,-795.31,0.0001382,2]
[337951325,1726213848777,-648.12,0.0001382,2]
[337951326,1726213848787,-500.0,0.0001382,2]
[337951327,1726213848796,-765.18,0.0001382,2]
[337951328,1726213848806,-500.0,0.0001382,2]
[337951329,1726213848815,-500.0,0.0001382,2]
[337951330,1726213848825,-277.831053,0.0001382,2]
[337951331,1726213848835,-733.15,0.0001382,2]
[337951332,1726213848844,-719.1,0.00013821,2]
[337951333,1726213848854,-518.96,0.00013821,2]
[337951334,1726213848863,-500.0,0.00013821,2]
[337951335,1726213848873,-500.0,0.00013821,2]
[337951336,1726213848882,-500.0,0.00013821,2]
[337951337,1726213848891,-687.62,0.00013821,2]
[337951338,1726213848900,-500.0,0.00013821,2]
[337951339,1726213848909,-500.0,0.00013821,2]
[337951340,1726213848918,-500.0,0.00013821,2]
[337951341,1726213848927,-500.0,0.00013821,2]
[337951342,1726213848937,-500.0,0.00013821,2]
[337951343,1726213848946,-500.0,0.00013821,2]
[337951344,1726213848955,-1097.55,0.00013821,2]
[337951345,1726213848964,-688.42,0.00013821,2]
[337951346,1726213848973,-2251.54,0.00013821,2]
[337951347,1726213848983,-500.0,0.00013821,2]
[337951348,1726213848992,-500.0,0.00013821,2]
[337951349,1726213849002,-680.82,0.00013821,2]
[337951350,1726213849012,-500.0,0.00013821,2]
[337951351,1726213849022,-788.87,0.00013821,2]
[337951352,1726213849031,-500.0,0.00013821,2]
[337951353,1726213849040,-500.0,0.00013821,2]
[337951354,1726213849049,-500.0,0.00013821,2]
[337951355,1726213849059,-754.37,0.00013821,2]
[337951356,1726213849068,-542.73,0.00013821,2]
[337951357,1726213849078,-853.47,0.00013821,2]
[337951358,1726213849087,-1395.22,0.00013821,2]
[337951359,1726213849097,-500.0,0.00013821,2]
[337951360,1726213849106,-613.01,0.00013821,2]
[337951361,1726213849115,-569.39,0.00013821,2]
[337951362,1726213849125,-844.23,0.00013821,2]
[337951363,1726213849135,-500.0,0.00013821,2]
[337951364,1726213849144,-726.04,0.00013821,2]
[337951365,1726213849154,-868.76,0.00013821,2]
[337951366,1726213849163,-500.0,0.00013821,2]
[337951367,1726213849172,-500.0,0.00013821,2]
[337951368,1726213849181,-511.52,0.00013821,2]
[337951369,1726213849191,-500.0,0.00013821,2]
[337951370,1726213849200,-971.45,0.00013821,2]
[337951371,1726213849210,-640.95,0.00013821,2]
[337951372,1726213849219,-500.0,0.00013821,2]
[337951373,1726213849228,-500.0,0.00013821,2]
[337951374,1726213849237,-500.0,0.00013821,2]
[337951375,1726213849247,-500.0,0.00013821,2]
[337951376,1726213849257,-500.0,0.00013821,2]
[337951377,1726213849267,-991.1,0.00013821,2]
[337951378,1726213849276,-792.55,0.00013821,2]
[337951379,1726213849286,-500.0,0.00013821,2]
[337951380,1726213849297,-464.09,0.00013821,2]
[337951381,1726213849307,-728.38,0.00013821,2]
[337951382,1726213849316,-1547.46,0.00013821,2]
[337951383,1726213849326,-567.19,0.00013821,2]
[337951384,1726213849336,-665.96,0.00013821,2]
[337951385,1726213849346,-500.0,0.00013821,2]
[337951386,1726213849356,-500.0,0.00013821,2]
[337951387,1726213849366,-692.91,0.00013821,2]
[337951388,1726213849375,-1032.82,0.00013821,2]
[337951389,1726213849385,-500.0,0.00013821,2]
[337951390,1726213849396,-629.1,0.00013821,2]
[337951391,1726213849405,-649.02,0.00013821,2]
[337951392,1726213849415,-500.0,0.00013821,2]
[337951393,1726213849424,-743.99,0.00013821,2]
[337951394,1726213849434,-756.68,0.00013821,2]
[337951395,1726213849444,-500.0,0.00013821,2]
[337951396,1726213849454,-822.23,0.00013821,2]
[337951397,1726213849463,-539.74,0.00013821,2]
[337951398,1726213849472,-1034.9,0.00013821,2]
[337951399,1726213849480,-500.0,0.00013821,2]
[337951400,1726213849490,-911.76,0.00013821,2]
[337951401,1726213849500,-500.0,0.00013821,2]
[337951402,1726213849510,-619.66,0.00013821,2]
[337951403,1726213849521,-500.0,0.00013821,2]
[337951404,1726213849530,-1001.47,0.00013821,2]
[337951405,1726213849540,-797.54,0.00013821,2]
[337951406,1726213849550,-500.0,0.00013821,2]
[337951407,1726213849560,-931.62,0.00013821,2]
[337951408,1726213849570,-500.0,0.00013821,2]
[337951409,1726213849579,-561.96,0.00013821,2]
[337951410,1726213849589,-501.86,0.00013821,2]
[337951411,1726213849598,-500.0,0.00013821,2]
[337951412,1726213849608,-1558.83,0.00013821,2]
[337951413,1726213849618,-500.0,0.00013821,2]
[337951414,1726213849627,-1350.65,0.00013821,2]
[337951415,1726213849637,-785.01,0.00013821,2]
[337951416,1726213849646,-500.0,0.00013821,2]
[337951417,1726213849656,-500.0,0.00013821,2]
[337951418,1726213849666,-500.0,0.00013821,2]
[337951419,1726213849675,-500.0,0.00013821,2]
[337951420,1726213849684,-500.0,0.00013821,2]
[337951421,1726213849694,-500.0,0.00013821,2]
[337951422,1726213849703,-524.29,0.00013821,2]
[337951423,1726213849712,-646.17,0.00013821,2]
[337951424,1726213849722,-1142.81,0.00013821,2]
[337951425,1726213849736,-936.94,0.00013821,2]
[337951426,1726213849747,-500.0,0.00013821,2]
[337951427,1726213849756,-711.24,0.00013821,2]
[337951428,1726213849765,-500.0,0.00013821,2]
[337951429,1726213849775,-500.0,0.00013821,2]
[337951430,1726213849784,-500.0,0.00013821,2]
[337951431,1726213849793,-562.66,0.00013821,2]
[337951432,1726213849803,-500.0,0.00013821,2]
[337951433,1726213849812,-500.0,0.00013821,2]
[337951434,1726213849822,-653.0,0.00013821,2]
[337951435,1726213849832,-853.97,0.00013821,2]
[337951436,1726213849842,-500.0,0.00013821,2]
[337951437,1726213849851,-500.0,0.00013821,2]
[337951438,1726213849861,-500.0,0.00013821,2]
[337951439,1726213849871,-1093.66,0.00013821,2]
[337951440,1726213849880,-1322.47,0.00013821,2]
[337951441,1726213849890,-787.84,0.00013821,2]
[337951442,1726213849899,-597.3669246,0.00013821,2]
[337951443,1726213849908,-657.72,0.00013821,2]
[337951444,1726213849918,-741.0,0.00013821,2]
[337951445,1726213849927,-500.0,0.00013821,2]
[337951446,1726213849936,-1499.96,0.00013821,2]
[337951447,1726213849947,-839.44,0.00013821,2]
[337951448,1726213849958,-716.46,0.00013821,2]
[337951449,1726213849969,-748.32,0.00013821,2]
[337951450,1726213849979,-2249.45,0.00013821,2]
[337951451,1726213849990,-500.0,0.00013821,2]
[337951452,1726213850000,-500.0,0.00013821,2]
[337951453,1726213850011,-620.77,0.00013821,2]
[337951454,1726213850020,-564.9729055,0.00013821,2]
[337951455,1726213850029,-735.53,0.00013821,2]
[337951456,1726213850038,-500.0,0.00013821,2]
[337951457,1726213850047,-500.0,0.00013821,2]
[337951458,1726213850057,-500.0,0.00013821,2]
[337951459,1726213850066,-500.0,0.00013821,2]
[337951460,1726213850076,-500.0,0.00013821,2]
[337951461,1726213850084,-500.0,0.00013821,2]
[337951462,1726213850094,-960.0,0.00013821,2]
[337951463,1726213850103,-1368.79,0.00013821,2]
[337951464,1726213850112,-761.5,0.00013821,2]
[337951465,1726213850122,-411.54107346,0.00013821,2]
[337951466,1726213850132,-500.0,0.00013821,2]
[337951467,1726213850141,-500.0,0.00013821,2]
[337951468,1726213850150,-500.0,0.00013821,2]
[337951469,1726213850160,-740.63,0.00013821,2]
[337951470,1726213850168,-500.0,0.00013821,2]
[337951471,1726213850178,-1225.34,0.00013821,2]
[337951472,1726213850188,-17658.12,0.00013821,2]
[337951473,1726213850197,-500.0,0.00013821,2]
[337951474,1726213850208,-904.75,0.00013821,2]
[337951475,1726213850219,-958.77,0.00013821,2]
[337951476,1726213850231,-1641.0,0.00013821,2]
[337951477,1726213850240,-773.78,0.00013821,2]
[337951478,1726213850249,-605.11,0.00013821,2]
[337951479,1726213850259,-500.0,0.00013821,2]
[337951480,1726213850268,-500.0,0.00013821,2]
[337951481,1726213850278,-655.76,0.00013821,2]
[337951482,1726213850287,-500.0,0.00013821,2]
[337951483,1726213850296,-661.13,0.00013821,2]
[337951484,1726213850305,-500.0,0.00013821,2]
[337951485,1726213850314,-1608.56,0.00013821,2]
[337951486,1726213850323,-500.0,0.00013821,2]
[337951487,1726213850332,-740.0,0.00013821,2]
[337951488,1726213850341,-626.56,0.00013821,2]
[337951489,1726213850350,-3047.98,0.00013821,2]
[337951490,1726213850359,-848.45,0.00013821,2]